DEPARTMENT FAMILY,ENTITY,DATE,EXPENSE TYPE,EXPENSE AREA,SUPPLIER,TRANSACTION NUMBER,AMOUNT,,
ONCOLOGY SLA - UHB,ONCOLOGY SLA - UHB,24/05/2021,REFERRED TESTS RECHARGES,CANCER SERVICES CARE GROUP,UNIVERSITY HOSPITAL BIRMINGHAM NHS FT,0015019355,"67,987.90",,
CORPORATE PA'S,CORPORATE PA'S,19/05/2021,OTHER ESTABLISHMENT EXP,DIRECTOR OF CORPORATE AFFAIRS,CARE QUALITY COMMISSION,0015019463,"197,410.00",,
PUBLIC HEALTH TRAINEES,PUBLIC HEALTH TRAINEES,19/05/2021,SPECIALISED REGISTRARS,HR & TRAINING,ST HELENS&KNOWSLEY TEACHING HOSPITALS,0015019515,"27,662.99",,
MAINTENANCE - APPLICATIONS,MAINTENANCE - APPLICATIONS,19/05/2021,SOFTWARE MAINTENANCE,INFORMATION DIRECTOR,PCTI SOLUTIONS LTD,0020070075,"40,080.00",,
MARKETING AND COMMUNICATIONS,MARKETING AND COMMUNICATIONS,17/05/2021,EXTERNAL CONSULTANCY (NON-PFI),DIRECTOR OF STRATEGY,LONGACRES CONSULTING LTD,0020070354,"28,728.00",,
MAINTENANCE - INFRASTRUCTURE,MAINTENANCE - INFRASTRUCTURE,04/05/2021,OTHER TELEPHONE RENTAL,INFORMATION DIRECTOR,VIRGIN MEDIA BUSINESS,0020071120,"63,260.75",,
MAINTENANCE - INFRASTRUCTURE,MAINTENANCE - INFRASTRUCTURE,04/05/2021,OTHER TELEPHONE RENTAL,INFORMATION DIRECTOR,"MULTITONE ELECTRONICS PLC,",0020071148,"33,198.00",,
FINANCE DEPARTMENT,FINANCE DEPARTMENT,04/05/2021,EXTERNAL AUDIT,FINANCE DIRECTOR,MAZARS LLP,0020071187,"30,000.00",,
IMAGING DEPARTMENT,IMAGING DEPARTMENT,24/05/2021,X-RAY FILM & CHEMICALS - PURCH,CLINICAL SUPPORT SERVICES,MOUNT INTERNATIONAL ULTRASOUND SERV LTD,0020071394,"63,306.66",,
HOSPITAL REDEVELOPMENT,HOSPITAL REDEVELOPMENT,10/05/2021,BUSINESS RATES,ESTATES MANAGEMENT,WALSALL MBC,0020071572,"238,080.00",,
TRUST WIDE,TRUST WIDE,26/05/2021,CREDITORS - OTHER,TRUST WIDE,TUSKERDIRECT LTD,0020071646,"41,709.40",,
MAINTENANCE - INFRASTRUCTURE,MAINTENANCE - INFRASTRUCTURE,19/05/2021,OTHER TELEPHONE RENTAL,INFORMATION DIRECTOR,VIRGIN MEDIA BUSINESS,0020071730,"33,187.76",,
CAP A&E BUILD,CAP A&E BUILD,17/05/2021,PURCHASE OF TANGIBLE ASSET,CAPITAL,TILBURY DOUGLAS CONSTRUCTION LTD,0020071738,"998,840.34",,
ESTATES & FACILITIES DIRECTOR,ESTATES & FACILITIES DIRECTOR,24/05/2021,CLEANING MATERIALS,ESTATES MANAGEMENT,SUNBELT RENTALS LTD,0020071881,"37,131.20",,
CAP LIFECYCLE COMMITTED 201112,CAP LIFECYCLE COMMITTED 201112,24/05/2021,PURCHASE OF TANGIBLE ASSET,CAPITAL,THE WALSALL HOSPITAL CO PLC,0020071882,"26,217.00",,
CAP LIFECYCLE COMMITTED 201112,CAP LIFECYCLE COMMITTED 201112,24/05/2021,PURCHASE OF TANGIBLE ASSET,CAPITAL,THE WALSALL HOSPITAL CO PLC,0020071883,"43,247.47",,
MINOR WORKS,MINOR WORKS,24/05/2021,MINOR WORKS,ESTATES MANAGEMENT,THE WALSALL HOSPITAL CO PLC,0020071885,"57,737.92",,
STAFF FLOW,STAFF FLOW,20/05/2021,AGENCY OTHER CAREER GRADES,FINANCE DIRECTOR,LIAISON PAYROLL,0020071895,"63,696.85",,
STAFF FLOW,STAFF FLOW,20/05/2021,AGENCY OTHER CAREER GRADES,FINANCE DIRECTOR,LIAISON PAYROLL,0020071907,"68,228.85",,
STAFF FLOW,STAFF FLOW,27/05/2021,AGENCY OTHER CAREER GRADES,FINANCE DIRECTOR,LIAISON PAYROLL,0020072068,"115,256.20",,
STAFF FLOW,STAFF FLOW,27/05/2021,AGENCY OTHER CAREER GRADES,FINANCE DIRECTOR,LIAISON PAYROLL,0020072069,"203,253.98",,
OPS DIR COVID,OPS DIR COVID,12/05/2021,OTHER EXPENSES,OPS DIR COVID,THE BEST CONNECTION GROUP LTD,0050098037,"32,807.10",,
OPS DIR COVID,OPS DIR COVID,12/05/2021,OTHER EXPENSES,OPS DIR COVID,THE BEST CONNECTION GROUP LTD,0050098603,"31,610.33",,
CAP TOTAL MOBILE,CAP TOTAL MOBILE,12/05/2021,PURCHASE OF TANGIBLE ASSET,CAPITAL,XMA,0050098726,"65,811.00",,
OPS DIR COVID,OPS DIR COVID,12/05/2021,OTHER EXPENSES,OPS DIR COVID,THE BEST CONNECTION GROUP LTD,0050098977,"26,936.75",,
TRUST WIDE,TRUST WIDE,05/05/2021,CREDITORS - TRADE,TRUST WIDE,NHS SUPPLY CHAIN CONSUMABLES,0050099106,"158,189.62",,
TRUST WIDE,TRUST WIDE,05/05/2021,CREDITORS - TRADE,TRUST WIDE,NHS SUPPLY CHAIN CONSUMABLES,0050099107,"135,728.64",,
TRUST WIDE,TRUST WIDE,05/05/2021,CREDITORS - TRADE,TRUST WIDE,NHS SUPPLY CHAIN CONSUMABLES,0050099108,"153,054.22",,
TRUST WIDE,TRUST WIDE,05/05/2021,CREDITORS - TRADE,TRUST WIDE,NHS SUPPLY CHAIN CONSUMABLES,0050099109,"175,645.90",,
MARKETING AND COMMUNICATIONS,MARKETING AND COMMUNICATIONS,10/05/2021,OTHER ESTABLISHMENT EXP,DIRECTOR OF STRATEGY,OURNET HEALTH SERVICES LTD,0050099152,"25,000.00",,
FOOD PRODUCTION,FOOD PRODUCTION,24/05/2021,CLEANING EQUIPMENT,FACILITIES,HOBART UK,0050099191,"32,579.59",,
CHIEF EXECUTIVE,CHIEF EXECUTIVE,19/05/2021,OTHER ESTABLISHMENT EXP,CHIEF EXECUTIVE,SOFTCAT LTD,0050099241,"247,221.61",,
CAP LIFECYCLE COMMITTED 201112,CAP LIFECYCLE COMMITTED 201112,17/05/2021,PURCHASE OF TANGIBLE ASSET,CAPITAL,THE WALSALL HOSPITAL CO PLC,0050099319,"54,059.34",,
MINOR WORKS,MINOR WORKS,17/05/2021,MINOR WORKS,ESTATES MANAGEMENT,THE WALSALL HOSPITAL CO PLC,0050099323,"30,700.99",,
PUBLIC HEALTH TRAINEES,PUBLIC HEALTH TRAINEES,13/05/2021,SPECIALISED REGISTRARS,HR & TRAINING,ST HELENS&KNOWSLEY TEACHING HOSPITALS,0050099397,"90,000.00",,
MORTUARY,MORTUARY,17/05/2021,SERVICES FROM OTHER NHS BODIES,CLINICAL SUPPORT SERVICES,ROYAL WOLVERHAMPTON PATHOLOGY,0050099398,"276,128.56",,
MORTUARY,MORTUARY,17/05/2021,SERVICES FROM OTHER NHS BODIES,CLINICAL SUPPORT SERVICES,ROYAL WOLVERHAMPTON PATHOLOGY,0050099399,"423,328.45",,
STAFF FLOW,STAFF FLOW,13/05/2021,AGENCY OTHER CAREER GRADES,FINANCE DIRECTOR,LIAISON PAYROLL,0050099403,"165,992.02",,
STAFF FLOW,STAFF FLOW,13/05/2021,AGENCY OTHER CAREER GRADES,FINANCE DIRECTOR,LIAISON PAYROLL,0050099404,"88,402.05",,
TRUST WIDE,TRUST WIDE,17/05/2021,UNITARY PAYMENT,TRUST WIDE,HOSPITAL CO UP,0050099426,"2,166,785.45",,
COVID VACCS PROG - PHARMACY,COVID VACCS PROG - PHARMACY,19/05/2021,MED & SURG EQUIPMENT,LIFESTYLES AND DISCH SUPT,ABM FACILITY SERVICES UK LIMITED,0050099454,"37,770.78",,
THEATRE PRACTITIONER,THEATRE PRACTITIONER,26/05/2021,PURCHASE OF HCARE FROM NON-NHS,THEATRE CRIT CARE AND ANAES,THE PLACEMENT GROUP,0050099585,"111,582.54",,
TRUST WIDE,TRUST WIDE,26/05/2021,CREDITORS - TRADE,TRUST WIDE,NHS SUPPLY CHAIN CONSUMABLES,0050099634,"169,022.01",,
MAINTENANCE - APPLICATIONS,MAINTENANCE - APPLICATIONS,10/05/2021,COMPUTER HARDWARE AND SOFT MTC,INFORMATION DIRECTOR,EUROPEAN ELECTRONIQUE LIMITED,0060050601,"99,895.79",,
ELECTRONICS DEPARTMENT,ELECTRONICS DEPARTMENT,10/05/2021,MED & SURG MTC,EBME EQUIPMENT,GE MEDICAL SYSTEMS,0060050709,"47,192.05",,
OPS DIR COVID,OPS DIR COVID,10/05/2021,OTHER EXPENSES,OPS DIR COVID,THE BEST CONNECTION GROUP LTD,0060050726,"29,210.73",,
MEDICAL DIRECTOR SUPPORT,MEDICAL DIRECTOR SUPPORT,17/05/2021,OTHER ESTABLISHMENT EXP,MEDICAL DIRECTOR SUPPORT,SOFTCAT LTD,0060050879,"100,162.80",,
STAFF FLOW,STAFF FLOW,06/05/2021,AGENCY OTHER CAREER GRADES,FINANCE DIRECTOR,LIAISON PAYROLL,0060051119,"60,624.94",,
STAFF FLOW,STAFF FLOW,06/05/2021,AGENCY OTHER CAREER GRADES,FINANCE DIRECTOR,LIAISON PAYROLL,0060051120,"93,531.49",,
GENERAL PATHOLOGY DEPARTMENT,GENERAL PATHOLOGY DEPARTMENT,10/05/2021,SOFTWARE MAINTENANCE,CLINICAL SUPPORT SERVICES,CLINISYS SOLUTIONS LTD,0060051151,"71,325.71",,
SECURITY SERVICES,SECURITY SERVICES,17/05/2021,SECURITY CONTRACTS,FACILITIES,APCOA PARKING UK LTD,0060051242,"49,970.89",,
SECURITY SERVICES,SECURITY SERVICES,17/05/2021,SECURITY CONTRACTS,FACILITIES,APCOA PARKING UK LTD,0060051243,"49,970.89",,
TRUST WIDE,TRUST WIDE,17/05/2021,CREDITORS - TRADE,TRUST WIDE,NHS SUPPLY CHAIN CONSUMABLES,0060051255,"163,741.51",,
TRUST WIDE,TRUST WIDE,17/05/2021,CREDITORS - TRADE,TRUST WIDE,NHS SUPPLY CHAIN CONSUMABLES,0060051256,"121,779.37",,
TRUST WIDE,TRUST WIDE,17/05/2021,CREDITORS - TRADE,TRUST WIDE,NHS SUPPLY CHAIN CONSUMABLES,0060051257,"25,339.06",,
IMAGING DEPARTMENT,IMAGING DEPARTMENT,17/05/2021,MED & SURG MTC,CLINICAL SUPPORT SERVICES,NHS SUPPLY CHAIN MAINTENANCE,0060051267,"73,486.63",,
LAUNDRY SERVICES,LAUNDRY SERVICES,17/05/2021,OTHER GENERAL SUPPLIES & SERV,FACILITIES,BERENDSEN UK LTD,0060051274,"56,274.58",,
FINANCE DEPARTMENT,FINANCE DEPARTMENT,19/05/2021,EXTERNAL AUDIT,FINANCE DIRECTOR,MAZARS LLP,0060051345,"30,000.00",,
TRUST WIDE,TRUST WIDE,19/05/2021,CREDITORS - TRADE,TRUST WIDE,NHS SUPPLY CHAIN CONSUMABLES,0060051556,"174,875.30",,
TRUST WIDE,TRUST WIDE,12/05/2021,CREDITORS - TRADE,TRUST WIDE,ROCHE PRODUCTS LTD,0090292066,"33,157.42",,
,,,,,,TOTAL,"8,457,117.38",,
